fUSD/lending_fUSD_20240913
["ID","MTS","AMOUNT","RATE_DAILY","PERIOD"]
[337925660,1726207849471,-500.0,0.00013503,2]
[337925662,1726207849481,-500.0,0.00013503,2]
[337925664,1726207849490,-1809.16,0.00013503,2]
[337925666,1726207849500,-500.0,0.00013503,2]
[337925668,1726207849509,-500.0,0.00013503,2]
[337925670,1726207849518,-1266.41,0.00013503,2]
[337925672,1726207849529,-2970.17,0.00013503,2]
[337925674,1726207849539,-2176.07,0.00013503,2]
[337925676,1726207849548,-500.0,0.00013503,2]
[337925677,1726207849558,-500.0,0.00013503,2]
[337925680,1726207849567,-1275.59,0.00013503,2]
[337925682,1726207849577,-500.0,0.00013503,2]
[337925684,1726207849587,-500.0,0.00013503,2]
[337925686,1726207849596,-500.0,0.00013503,2]
[337925687,1726207849606,-810.78,0.00013503,2]
[337925689,1726207849616,-1552.2,0.00013503,2]
[337925691,1726207849626,-595.76,0.00013503,2]
[337925693,1726207849635,-1356.18,0.00013503,2]
[337925695,1726207849646,-2622.06,0.00013503,2]
[337925697,1726207849656,-2293.56,0.00013503,2]
[337925699,1726207849665,-500.61,0.00013503,2]
[337925701,1726207849675,-500.0,0.00013503,2]
[337925702,1726207849684,-1173.88,0.00013503,2]
[337925704,1726207849694,-1137.68,0.00013503,2]
[337925706,1726207849704,-2568.68,0.00013503,2]
[337925708,1726207849714,-500.0,0.00013503,2]
[337925710,1726207849724,-1616.09,0.00013503,2]
[337925712,1726207849733,-733.75,0.00013503,2]
[337925714,1726207849743,-1316.26,0.00013503,2]
[337925716,1726207849753,-717.99,0.00013503,2]
[337925718,1726207849762,-500.0,0.00013503,2]
[337925720,1726207849772,-1443.26,0.00013503,2]
[337925722,1726207849782,-500.0,0.00013503,2]
[337925724,1726207849791,-1309.7,0.00013503,2]
[337925725,1726207849801,-3118.53,0.00013503,2]
[337925727,1726207849810,-789.58,0.00013503,2]
[337925729,1726207849819,-1708.55,0.00013503,2]
[337925731,1726207849829,-2257.53,0.00013503,2]
[337925733,1726207849838,-500.0,0.00013503,2]
[337925735,1726207849848,-500.0,0.00013503,2]
[337925737,1726207849857,-1161.7,0.00013503,2]
[337925739,1726207849866,-986.29,0.00013503,2]
[337925741,1726207849876,-500.0,0.00013503,2]
[337925743,1726207849885,-500.0,0.00013503,2]
[337925745,1726207849895,-1048.72,0.00013503,2]
[337925747,1726207849904,-500.0,0.00013503,2]
[337925749,1726207849915,-1895.67,0.00013503,2]
[337925751,1726207849924,-6468.98,0.00013503,2]
[337925753,1726207849934,-500.0,0.00013503,2]
[337925755,1726207849944,-500.0,0.00013503,2]
[337925757,1726207849954,-500.0,0.00013503,2]
[337925759,1726207849963,-500.0,0.00013503,2]
[337925761,1726207849973,-500.0,0.00013503,2]
[337925763,1726207849982,-1525.68,0.00013503,2]
[337925765,1726207849991,-500.0,0.00013503,2]
[337925767,1726207850001,-2115.23,0.00013503,2]
[337925769,1726207850010,-1856.39,0.00013503,2]
[337925770,1726207850019,-1368.05,0.00013503,2]
[337925772,1726207850029,-500.0,0.00013503,2]
[337925774,1726207850039,-500.0,0.00013503,2]
[337925776,1726207850048,-873.78,0.00013503,2]
[337925778,1726207850057,-596.94,0.00013503,2]
[337925780,1726207850066,-874.05,0.00013503,2]
[337925782,1726207850076,-500.0,0.00013503,2]
[337925784,1726207850085,-672.26,0.00013503,2]
[337925786,1726207850094,-4238.17,0.00013503,2]
[337925788,1726207850103,-961.06,0.00013503,2]
[337925790,1726207850113,-500.0,0.00013503,2]
[337925792,1726207850122,-500.0,0.00013503,2]
[337925794,1726207850132,-3098.55,0.00013503,2]
[337925795,1726207850141,-500.0,0.00013503,2]
[337925798,1726207850153,-500.0,0.00013503,2]
[337925800,1726207850163,-2349.07,0.00013503,2]
[337925831,1726207850464,-500.0,0.00013503,2]
[337925834,1726207850481,-852.44,0.00013503,2]
[337925836,1726207850491,-4294.23,0.00013503,2]
[337925837,1726207850500,-1221.18,0.00013503,2]
[337925839,1726207850510,-3008.39,0.00013503,2]
[337925841,1726207850520,-970.89,0.00013503,2]
[337925843,1726207850530,-639.9,0.00013503,2]
[337925845,1726207850539,-52989.22,0.00013503,2]
[337925847,1726207850549,-2603.55,0.00013503,2]
[337925849,1726207850559,-620.61907625,0.00013503,2]
[337925851,1726207850568,-531.44,0.00013503,2]
[337925853,1726207850577,-500.0,0.00013503,2]
[337925855,1726207850587,-500.0,0.00013503,2]
[337925857,1726207850596,-500.0,0.00013503,2]
[337925859,1726207850606,-2296.17,0.00013503,2]
[337925861,1726207850615,-1260.77,0.00013503,2]
[337925863,1726207850625,-3637.82,0.00013503,2]
[337925864,1726207850634,-589.37,0.00013503,2]
[337925866,1726207850644,-500.0,0.00013503,2]
[337925868,1726207850653,-500.0,0.00013503,2]
[337925870,1726207850663,-2200.06,0.00013503,2]
[337925872,1726207850672,-1993.3,0.00013503,2]
[337925874,1726207850682,-916.57,0.00013503,2]
[337925876,1726207850691,-4126.05,0.00013503,2]
[337925878,1726207850701,-2285.15,0.00013503,2]
[337925880,1726207850711,-750.37,0.00013503,2]
[337925882,1726207850720,-2309.1,0.00013503,2]
[337925884,1726207850730,-1262.6,0.00013503,2]
[337925886,1726207850740,-1608.17,0.00013503,2]
[337925888,1726207850749,-1355.42,0.00013503,2]
[337925890,1726207850758,-922.17,0.00013503,2]
[337925892,1726207850768,-4241.39,0.00013503,2]
[337925894,1726207850779,-1119.11,0.00013503,2]
[337925896,1726207850789,-3010.58,0.00013503,2]
[337925898,1726207850798,-2961.85,0.00013503,2]
[337925900,1726207850808,-3606.13,0.00013503,2]
[337925901,1726207850817,-5372.06,0.00013503,2]
[337925903,1726207850827,-571.19,0.00013503,2]
[337925905,1726207850836,-500.0,0.00013503,2]
[337925907,1726207850845,-981.11,0.00013503,2]
[337925909,1726207850855,-914.29,0.00013503,2]
[337925911,1726207850864,-500.0,0.00013503,2]
[337925913,1726207850874,-785.15,0.00013503,2]
[337925915,1726207850883,-1266.26,0.00013503,2]
[337925917,1726207850893,-500.0,0.00013503,2]
[337925919,1726207850902,-500.0,0.00013503,2]
[337925921,1726207850911,-500.0,0.00013503,2]
[337925923,1726207850922,-34284.25,0.00013503,2]
[337925925,1726207850931,-6552.28,0.00013503,2]
[337925927,1726207850941,-241.18112675,0.00013503,2]
[337925929,1726207850950,-3396.17,0.00013503,2]
[337925931,1726207850959,-5048.0,0.00013503,2]
[337925932,1726207850969,-2532.63,0.00013503,2]
[337925935,1726207850979,-966.85,0.00013503,2]
[337925937,1726207850989,-3180.3,0.00013503,2]
[337925938,1726207850998,-2150.36,0.00013503,2]
[337925940,1726207851007,-2705.79,0.00013503,2]
[337925942,1726207851017,-906.34,0.00013503,2]
[337925944,1726207851027,-2247.98,0.00013503,2]
[337925946,1726207851036,-500.0,0.00013503,2]
[337925948,1726207851046,-550.95,0.00013503,2]
[337925950,1726207851055,-11539.97,0.00013503,2]
[337925952,1726207851065,-4848.46,0.00013503,2]
[337925954,1726207851075,-3007.15,0.00013503,2]
[337925956,1726207851085,-2177.1,0.00013503,2]
[337925958,1726207851094,-2051.18,0.00013503,2]
[337925960,1726207851103,-2518.74,0.00013503,2]
[337925962,1726207851113,-544.78,0.00013503,2]
[337925964,1726207851122,-500.0,0.00013503,2]
[337925966,1726207851131,-2426.19,0.00013503,2]
[337925968,1726207851141,-2498.51,0.00013503,2]
[337925969,1726207851156,-3383.13,0.00013503,2]
[337925971,1726207851166,-2318.53,0.00013503,2]
[337925973,1726207851176,-3188.29,0.00013503,2]
[337925975,1726207851186,-6251.33,0.00013503,2]
[337925977,1726207851195,-1005.33,0.00013503,2]
[337925979,1726207851204,-3388.78,0.00013503,2]
[337925981,1726207851214,-3007.82,0.00013503,2]
[337925983,1726207851224,-2723.58,0.00013503,2]
[337925984,1726207851233,-1216.59,0.00013503,2]
[337925985,1726207851243,-500.0,0.00013503,2]
[337925986,1726207851253,-500.0,0.00013503,2]
[337925987,1726207851263,-500.0,0.00013504,2]
[337925989,1726207851272,-1597.26,0.00013504,2]
[337925991,1726207851282,-1123.5,0.00013504,2]
[337925993,1726207851292,-4459.04,0.00013504,2]
[337925995,1726207851302,-1655.33,0.00013504,2]
[337925997,1726207851312,-500.0,0.00013504,2]
[337925999,1726207851327,-2236.93,0.00013504,2]
[337926001,1726207851337,-2178.02,0.00013504,2]
[337926003,1726207851346,-1667.22,0.00013504,2]
[337926005,1726207851356,-2180.98,0.00013504,2]
[337926007,1726207851367,-2168.58,0.00013504,2]
[337926009,1726207851377,-500.0,0.00013504,2]
[337926011,1726207851386,-500.0,0.00013504,2]
[337926013,1726207851396,-1610.77,0.00013504,2]
[337926015,1726207851406,-1578.52,0.00013504,2]
[337926017,1726207851416,-991.16,0.00013504,2]
[337926019,1726207851425,-1755.89,0.00013504,2]
[337926021,1726207851434,-500.0,0.00013504,2]
[337926023,1726207851444,-4137.78,0.00013504,2]
[337926025,1726207851454,-710.74,0.00013504,2]
[337926027,1726207851464,-3611.82,0.00013504,2]
[337926029,1726207851473,-1582.96,0.00013504,2]
[337926031,1726207851482,-3006.27,0.00013504,2]
[337926032,1726207851493,-990.25,0.00013504,2]
[337926034,1726207851503,-1355.63,0.00013504,2]
[337926036,1726207851513,-2394.09,0.00013504,2]
[337926038,1726207851522,-2186.47,0.00013504,2]
[337926040,1726207851533,-500.0,0.00013504,2]
[337926042,1726207851543,-1174.7,0.00013504,2]
[337926044,1726207851552,-1755.23,0.00013504,2]
[337926046,1726207851562,-1827.91,0.00013504,2]
[337926048,1726207851572,-903.53,0.00013504,2]
[337926050,1726207851583,-500.0,0.00013504,2]
[337926052,1726207851592,-901.57,0.00013504,2]
[337926054,1726207851602,-849.96,0.00013504,2]
[337926056,1726207851612,-2008.45,0.00013504,2]
[337926058,1726207851622,-1026.83,0.00013504,2]
[337926060,1726207851632,-3173.88,0.00013504,2]
[337926062,1726207851642,-1917.63,0.00013504,2]
[337926064,1726207851651,-741.5,0.00013504,2]
[337926066,1726207851662,-500.0,0.00013504,2]
[337926068,1726207851671,-2883.01,0.00013504,2]
[337926070,1726207851680,-2235.92,0.00013504,2]
[337926072,1726207851689,-500.0,0.00013504,2]
[337926074,1726207851700,-866.48,0.00013504,2]
[337926075,1726207851709,-3749.94,0.00013504,2]
[337926077,1726207851719,-764.3,0.00013504,2]
[337926079,1726207851729,-2582.0,0.00013504,2]
[337926081,1726207851738,-1741.2,0.00013504,2]
[337926083,1726207851747,-1998.95,0.00013504,2]
[337926085,1726207851757,-500.0,0.00013504,2]
[337926087,1726207851766,-2252.07,0.00013504,2]
[337926089,1726207851776,-500.0,0.00013504,2]
[337926091,1726207851786,-2274.3,0.00013504,2]
[337926093,1726207851795,-4179.74,0.00013504,2]
[337926095,1726207851805,-500.0,0.00013504,2]
[337926097,1726207851815,-1853.09,0.00013504,2]
[337926098,1726207851825,-500.0,0.00013504,2]
[337926100,1726207851835,-776.79,0.00013504,2]
[337926102,1726207851845,-1622.46,0.00013504,2]
[337926104,1726207851854,-2217.17,0.00013504,2]
[337926106,1726207851865,-1359.11,0.00013504,2]
[337926108,1726207851875,-500.0,0.00013504,2]
[337926110,1726207851886,-1261.5,0.00013504,2]
[337926112,1726207851895,-1258.27,0.00013504,2]
[337926114,1726207851905,-709.66,0.00013504,2]
[337926116,1726207851915,-2888.25,0.00013504,2]
[337926118,1726207851924,-574.29,0.00013504,2]
[337926120,1726207851933,-1568.79,0.00013504,2]
[337926122,1726207851942,-2177.36,0.00013504,2]
[337926124,1726207851952,-1943.66,0.00013504,2]
[337926126,1726207851962,-500.0,0.00013505,2]
[337926128,1726207851971,-500.0,0.00013505,2]
[337926129,1726207851981,-500.0,0.00013505,2]
[337926131,1726207851990,-500.0,0.00013505,2]
[337926133,1726207851999,-500.0,0.00013505,2]
[337926135,1726207852009,-500.0,0.00013505,2]
[337926137,1726207852018,-500.0,0.00013505,2]
[337926139,1726207852028,-500.0,0.00013505,2]
[337926141,1726207852037,-2698.15,0.00013505,2]
[337926143,1726207852046,-500.0,0.00013505,2]
[337926145,1726207852056,-1619.86,0.00013505,2]
[337926147,1726207852065,-1586.6,0.00013505,2]
[337926149,1726207852075,-500.0,0.00013505,2]
[337926151,1726207852084,-814.02,0.00013505,2]
[337926153,1726207852094,-646.24,0.00013505,2]
[337926155,1726207852103,-1719.9,0.00013505,2]
[337926156,1726207852113,-940.8,0.00013505,2]
[337926158,1726207852122,-500.0,0.00013505,2]
[337926160,1726207852132,-500.0,0.00013505,2]
[337926162,1726207852141,-2780.02,0.00013505,2]
[337926164,1726207852151,-991.55,0.00013505,2]
[337926166,1726207852161,-3182.62,0.00013505,2]
[337926168,1726207852170,-1820.52,0.00013505,2]
[337926170,1726207852180,-4033.44,0.00013505,2]
[337926172,1726207852189,-541.76,0.00013505,2]
[337926174,1726207852199,-2662.49,0.00013505,2]
[337926176,1726207852209,-697.73,0.00013505,2]
[337926178,1726207852218,-1652.64107867,0.00013505,2]
[337926210,1726207852545,-713.59892133,0.00013505,2]
[337926212,1726207852554,-500.0,0.00013505,2]
[337926213,1726207852563,-500.0,0.00013505,2]
[337926215,1726207852572,-2066.88,0.00013505,2]
[337926217,1726207852581,-3032.62,0.00013505,2]
[337926219,1726207852591,-500.0,0.00013505,2]
[337926221,1726207852601,-3440.83,0.00013505,2]
[337926223,1726207852611,-587.37,0.00013505,2]
[337926225,1726207852620,-500.0,0.00013505,2]
[337926227,1726207852630,-1149.25,0.00013505,2]
[337926229,1726207852639,-500.0,0.00013505,2]
[337926231,1726207852649,-2007.79,0.00013505,2]
[337926233,1726207852658,-500.0,0.00013505,2]
[337926235,1726207852667,-500.0,0.00013505,2]
[337926237,1726207852676,-535.29,0.00013505,2]
[337926239,1726207852686,-500.0,0.00013505,2]
[337926241,1726207852695,-3900.82,0.00013505,2]
[337926243,1726207852704,-564.36,0.00013505,2]
[337926250,1726207852776,-887.43,0.00013505,2]
[337926252,1726207852795,-823.78,0.00013505,2]
[337926254,1726207852804,-500.0,0.00013505,2]
[337926256,1726207852814,-500.0,0.00013573,2]
[337926258,1726207852823,-160.74645544,0.00013573,2]
[337926259,1726207852833,-1000.0,0.00013587,2]
[337926261,1726207852842,-1000.0,0.00013587,2]
[337926264,1726207852852,-1000.0,0.00013587,2]
[337926265,1726207852862,-1000.0,0.00013587,2]
[337926267,1726207852870,-1000.0,0.00013587,2]
[337926269,1726207852879,-1000.0,0.00013587,2]
[337926271,1726207852889,-1000.0,0.00013587,2]
[337926273,1726207852901,-1000.0,0.00013587,2]
[337926275,1726207852910,-1000.0,0.00013587,2]
[337926277,1726207852925,-1000.0,0.00013587,2]
[337926279,1726207852935,-1000.0,0.00013587,2]
[337926281,1726207852944,-1000.0,0.00013587,2]
[337926283,1726207852955,-1000.0,0.00013587,2]
[337926285,1726207852964,-1000.0,0.00013587,2]
[337926287,1726207852974,-1000.0,0.00013587,2]
[337926288,1726207852983,-1971.82458,0.0001359,2]
[337926290,1726207852993,-270.94,0.00013598,2]
[337926292,1726207853002,-381.87,0.000136,5]
[337926294,1726207853011,-840.0,0.00013616,2]
[337926296,1726207853020,-150.0,0.00013628,2]
[337926298,1726207853031,-439.11,0.00013635,2]
[337926300,1726207853040,-200.0,0.00013651,2]
[337926301,1726207853049,-150.0,0.00013675,2]
[337926303,1726207853059,-528.0,0.00013699,2]
[337926305,1726207853068,-1475.85,0.00013699,2]
[337926307,1726207853078,-151.0,0.00013699,2]
[337926309,1726207853087,-151.0,0.00013699,2]
[337926311,1726207853096,-151.0,0.00013699,2]
[337926313,1726207853105,-151.0,0.00013699,2]
[337926315,1726207853114,-390.25,0.00013699,2]
[337926317,1726207853124,-2751.0,0.00013699,2]
[337926319,1726207853134,-200.0,0.00013699,2]
[337926321,1726207853142,-500.0,0.00013699,2]
[337926322,1726207853153,-151.0,0.00013699,2]
[337926324,1726207853162,-151.0,0.00013699,2]
[337926326,1726207853171,-151.0,0.00013699,2]
[337926328,1726207853181,-1250.0,0.000137,2]
[337926330,1726207853191,-1438.90913433,0.000137,2]
[337926332,1726207853200,-1000.0,0.000137,5]
[337926334,1726207853210,-153.61647769,0.00013719,2]
[337926336,1726207853220,-500.0,0.00013775,2]
[337926338,1726207853230,-740.86,0.00013775,2]
[337926340,1726207853240,-500.0,0.00013775,2]
[337926342,1726207853249,-577.5,0.00013776,2]
[337926344,1726207853258,-47356.9,0.00013776,2]
[337926346,1726207853267,-6669.17,0.00013776,2]
[337926348,1726207853276,-2780.8,0.00013776,2]
[337926349,1726207853285,-500.0,0.00013776,2]
[337926351,1726207853295,-1371.45,0.00013776,2]
[337926353,1726207853304,-1644.43,0.00013776,2]
[337926355,1726207853315,-601.64,0.00013776,2]
[337926357,1726207853327,-805.65,0.00013776,2]
[337926359,1726207853338,-2471.22,0.00013776,2]
[337926361,1726207853347,-3998.73,0.00013776,2]
[337926363,1726207853358,-1893.7,0.00013776,2]
[337926365,1726207853368,-2685.85,0.00013776,2]
[337926367,1726207853377,-2355.68,0.00013776,2]
[337926369,1726207853387,-1290.2,0.00013776,2]
[337926371,1726207853398,-3090.69,0.00013776,2]
[337926373,1726207853408,-10575.95,0.00013776,2]
[337926375,1726207853417,-2228.93,0.00013776,2]
[337926376,1726207853426,-1924.11,0.00013776,2]
[337926378,1726207853436,-3999.61,0.00013776,2]
[337926380,1726207853445,-2756.63,0.00013776,2]
[337926382,1726207853455,-2039.83,0.00013776,2]
[337926383,1726207853463,-4382.07,0.00013776,2]
[337926385,1726207853472,-2563.61,0.00013776,2]
[337926387,1726207853482,-697.17,0.00013776,2]
[337926389,1726207853491,-3668.01,0.00013776,2]
[337926391,1726207853501,-15000.85,0.00013776,2]
[337926393,1726207853510,-1017.52,0.00013776,2]
[337926394,1726207853520,-2679.4,0.00013776,2]
[337926396,1726207853530,-2417.39,0.00013776,2]
[337926398,1726207853539,-39510.23,0.00013776,2]
[337926400,1726207853548,-6415.55,0.00013776,2]
[337926402,1726207853557,-2131.91,0.00013776,2]
[337926404,1726207853567,-2033.36,0.00013776,2]
[337926406,1726207853576,-2847.91,0.00013776,2]
[337926407,1726207853585,-2357.11,0.00013776,2]
[337926409,1726207853595,-1449.8,0.00013776,2]
[337926411,1726207853604,-8256.5,0.00013776,2]
[337926413,1726207853613,-500.0,0.00013776,2]
[337926415,1726207853623,-9236.73,0.00013776,2]
[337926417,1726207853632,-1373.91,0.00013776,2]
[337926419,1726207853642,-3499.59,0.00013776,2]
[337926421,1726207853652,-1033.06,0.00013776,2]
[337926423,1726207853661,-2381.27,0.00013776,2]
[337926425,1726207853671,-3127.01,0.00013776,2]
[337926427,1726207853681,-3835.54,0.00013776,2]
[337926429,1726207853691,-7411.59,0.00013776,2]
[337926431,1726207853701,-6205.84,0.00013776,2]
[337926433,1726207853711,-1195.4,0.00013776,2]
[337926435,1726207853720,-693.82,0.00013776,2]
[337926437,1726207853730,-6244.27,0.00013776,2]
[337926439,1726207853739,-8864.5,0.00013776,2]
[337926441,1726207853748,-667.48,0.00013776,2]
[337926443,1726207853757,-1060.76,0.00013776,2]
[337926445,1726207853767,-897.04,0.00013776,2]
[337926446,1726207853776,-1814.79,0.00013777,2]
[337926448,1726207853785,-500.0,0.00013777,2]
[337926450,1726207853795,-500.0,0.00013777,2]
[337926452,1726207853804,-500.0,0.00013777,2]
[337926454,1726207853813,-954.6,0.00013777,2]
[337926456,1726207853823,-2167.77,0.00013777,2]
[337926458,1726207853832,-500.0,0.00013777,2]
[337926460,1726207853841,-1160.48,0.00013777,2]
[337926462,1726207853851,-500.0,0.00013777,2]
[337926464,1726207853861,-249.18246418,0.00013777,2]
[337926466,1726207853870,-1233.86,0.00013777,2]
[337926468,1726207853881,-500.0,0.00013777,2]
[337926470,1726207853890,-500.0,0.00013777,2]
[337926472,1726207853900,-2268.65,0.00013777,2]
[337926474,1726207853910,-500.0,0.00013777,2]
[337926476,1726207853920,-721.99,0.00013777,2]
[337926478,1726207853929,-638.65,0.00013777,2]
[337926480,1726207853938,-580.24,0.00013777,2]
[337926482,1726207853948,-1859.7,0.00013777,2]
[337926484,1726207853957,-500.0,0.00013777,2]
[337926486,1726207853967,-2169.41,0.00013777,2]
[337926488,1726207853976,-500.0,0.00013777,2]
[337926490,1726207853984,-500.0,0.00013777,2]
[337926492,1726207853993,-500.0,0.00013777,2]
[337926493,1726207854003,-500.0,0.00013777,2]
[337926495,1726207854013,-500.0,0.00013777,2]
[337926497,1726207854023,-500.0,0.00013777,2]
[337926499,1726207854032,-500.0,0.00013777,2]
[337926501,1726207854042,-2454.4,0.00013777,2]
[337926503,1726207854054,-1762.89,0.00013777,2]
[337926505,1726207854065,-500.0,0.00013777,2]
[337926507,1726207854076,-2427.84,0.00013777,2]
[337926510,1726207854087,-527.98,0.00013777,2]
[337926512,1726207854096,-500.0,0.00013777,2]
[337926514,1726207854106,-500.0,0.00013777,2]
[337926515,1726207854116,-500.0,0.00013777,2]
[337926517,1726207854127,-2449.58,0.00013777,2]
[337926519,1726207854137,-616.84,0.00013777,2]
[337926521,1726207854147,-500.0,0.00013777,2]
[337926523,1726207854158,-151.0,0.00013777,2]
[337926525,1726207854169,-500.0,0.00013777,2]
[337926527,1726207854179,-1200.04,0.00013777,2]
[337926528,1726207854190,-151.0,0.00013777,2]
[337926530,1726207854200,-500.0,0.00013777,2]
[337926532,1726207854211,-500.0,0.00013777,2]
[337926534,1726207854220,-500.0,0.00013777,2]
[337926536,1726207854230,-500.0,0.00013777,2]
[337926538,1726207854241,-1843.23,0.00013777,2]
[337926540,1726207854251,-501.2730446,0.00013777,2]
[337926542,1726207854262,-1049.64,0.00013777,2]
[337926544,1726207854272,-500.0,0.00013777,2]
[337926545,1726207854281,-716.26,0.00013777,2]
[337926547,1726207854290,-1314.98,0.00013777,2]
[337926549,1726207854299,-706.12,0.00013777,2]
[337926551,1726207854309,-2731.45,0.00013777,2]
[337926553,1726207854319,-1334.63,0.00013777,2]
[337926555,1726207854333,-500.0,0.00013777,2]
[337926557,1726207854342,-3186.47,0.00013777,2]
[337926559,1726207854352,-500.0,0.00013777,2]
[337926561,1726207854363,-1915.16,0.00013777,2]
[337926563,1726207854372,-968.58,0.00013777,2]
[337926565,1726207854381,-500.0,0.00013777,2]
[337926567,1726207854391,-500.0,0.00013777,2]
[337926569,1726207854401,-1992.66,0.00013777,2]
[337926571,1726207854411,-565.35,0.00013777,2]
[337926573,1726207854420,-496.20651716,0.00013777,2]
[337926575,1726207854429,-500.0,0.00013777,2]
[337926577,1726207854440,-500.0,0.00013777,2]
[337926579,1726207854451,-1809.16,0.00013777,2]
[337926581,1726207854460,-315.45252705,0.00013777,2]
[337926582,1726207854469,-500.0,0.00013777,2]
[337926584,1726207854479,-1266.41,0.00013777,2]
[337926586,1726207854488,-2970.17,0.00013777,2]
[337926588,1726207854498,-2176.07,0.00013777,2]
[337926590,1726207854508,-500.0,0.00013777,2]
[337926592,1726207854516,-500.0,0.00013777,2]
[337926594,1726207854525,-1275.59,0.00013777,2]
[337926596,1726207854535,-500.0,0.00013777,2]
[337926598,1726207854544,-500.0,0.00013777,2]
[337926600,1726207854555,-500.0,0.00013777,2]
[337926602,1726207854566,-810.78,0.00013777,2]
[337926604,1726207854575,-1552.2,0.00013777,2]
[337926606,1726207854585,-595.76,0.00013777,2]
[337926607,1726207854594,-1356.18,0.00013777,2]
[337926609,1726207854603,-2622.06,0.00013777,2]
[337926611,1726207854612,-2293.56,0.00013777,2]
[337926613,1726207854621,-500.61,0.00013777,2]
[337926615,1726207854631,-500.0,0.00013777,2]
[337926617,1726207854639,-1173.88,0.00013777,2]
[337926619,1726207854648,-1137.68,0.00013777,2]
[337926620,1726207854657,-2568.68,0.00013777,2]
[337926622,1726207854667,-500.0,0.00013777,2]
[337926624,1726207854676,-1616.09,0.00013777,2]
[337926626,1726207854685,-733.75,0.00013777,2]
[337926628,1726207854694,-1316.26,0.00013777,2]
[337926630,1726207854704,-717.99,0.00013777,2]
[337926632,1726207854714,-500.0,0.00013777,2]
[337926634,1726207854723,-1443.26,0.00013777,2]
[337926636,1726207854732,-500.0,0.00013777,2]
[337926638,1726207854741,-1309.7,0.00013777,2]
[337926640,1726207854751,-3118.53,0.00013777,2]
[337926641,1726207854759,-789.58,0.00013777,2]
[337926643,1726207854769,-1708.55,0.00013777,2]
[337926645,1726207854778,-2257.53,0.00013777,2]
[337926647,1726207854787,-500.0,0.00013777,2]
[337926649,1726207854797,-500.0,0.00013777,2]
[337926651,1726207854806,-1161.7,0.00013777,2]
[337926653,1726207854815,-986.29,0.00013777,2]
[337926655,1726207854824,-500.0,0.00013777,2]
[337926657,1726207854833,-500.0,0.00013777,2]
[337926659,1726207854843,-1048.72,0.00013777,2]
[337926661,1726207854851,-500.0,0.00013777,2]
[337926663,1726207854861,-1895.67,0.00013777,2]
[337926664,1726207854870,-6468.98,0.00013777,2]
[337926666,1726207854879,-500.0,0.00013777,2]
[337926668,1726207854889,-500.0,0.00013777,2]
[337926670,1726207854898,-500.0,0.00013777,2]
[337926672,1726207854907,-500.0,0.00013777,2]
[337926673,1726207854916,-500.0,0.00013777,2]
[337926675,1726207854925,-1525.68,0.00013777,2]
[337926677,1726207854935,-500.0,0.00013777,2]
[337926679,1726207854944,-2115.23,0.00013777,2]
[337926681,1726207854952,-1856.39,0.00013777,2]
[337926683,1726207854962,-1368.05,0.00013777,2]
[337926685,1726207854971,-500.0,0.00013777,2]